{"text_format":"3","workbook":"xlsx","n_sheets":6,"sheets":["Début","Tableau de bord","Dépenses et revenus","Rapport budgétaire","Listes de données","Tableau croisé dyn. Catégorie"],"not_rendered":{"charts":3,"defined_names":24,"pivot_tables":2},"read":"whole","date_system":"1900"}

{"sheet":"Début","index":0,"n_rows":8,"n_cols":2,"rows_kept":8}
[null,"À propos de ce modèle"]
[null,"Utilisez ce modèle pour créer un budget familial bimensuel."]
[null,"La feuille de calcul Tableau de bord contient des graphiques pour les totaux mensuels et annuels, ainsi qu’un tableau pour les revenus et les dépenses bimensuels."]
[null,"Entrez les catégories dans la feuille de calcul Listes de données, et les valeurs dans la feuille de calcul Revenus et Dépenses."]
[null,"Actualisez le tableau croisé dynamique dans la feuille de calcul Rapport budgétaire."]
[null,"Remarque :"]
[null,"Vous trouverez des instructions supplémentaires dans la colonne A de chaque feuille de calcul. Ce texte a été intentionnellement masqué. Pour supprimer le texte, sélectionnez la colonne A, puis SUPPRIMER. "]
[null,"Si vous souhaitez en savoir plus sur les tableaux, appuyez sur MAJ, puis sur F10 dans un tableau. Ensuite, sélectionnez l’option TABLEAU, puis TEXTE DE REMPLACEMENT. Pour les tableaux croisés dynamiques, appuyez sur Maj puis sur F10 dans un tableau. Ensuite, sélectionnez OPTIONS DU TABLEAU CROISÉ DYNAMIQUE, puis TEXTE DE REMPLACEMENT."]

{"sheet":"Tableau de bord","index":1,"n_rows":12,"n_cols":15,"rows_kept":12,"merged":[[0,1,0,13],[1,2,1,7]]}
["Créez un tableau de bord pour les totaux mensuels et annuels, ainsi que pour les revenus et dépenses bimensuels dans cette feuille de calcul. Des instructions utiles sur l’utilisation de cette feuille de calcul sont disponibles dans les cellules de cette colonne. Le titre de ce classeur se trouve dans la cellule de droite et le titre de la feuille de calcul dans la cellule O1.","Budget familial bimensuel",{"$nulls":12},"TABLEAU DE BORD"]
["Sélectionnez le curseur dans la cellule C2 pour modifier le mois dans la cellule de droite et sélectionnez le curseur dans la cellule J2 pour modifier l’année dans la cellule I2.",{"$f":"CHOOSE(Numéro_mois,\"JANVIER\",\"FÉVRIER\",\"MARS\",\"AVRIL\",\"MAI\",\"JUIN\",\"JUILLET\",\"AOÛT\",\"SEPTEMBRE\",\"OCTOBRE\",\"NOVEMBRE\",\"DÉCEMBRE\")","v":"DÉCEMBRE"},12,{"$nulls":5},{"$f":"YEAR(TODAY())","v":2022}]
["L’intitulé Totaux mensuels se trouve dans la cellule de droite et l’intitulé Totaux annuels dans la cellule I3.","TOTAUX MENSUELS",{"$nulls":6},"TOTAUX ANNUELS"]
["Un graphique à barres comparant les totaux des revenus mensuels aux totaux des dépenses mensuelles se trouve dans la cellule C4, et un graphique à barres comparant les totaux des revenus annuels aux totaux des dépenses annuelles se trouve dans la cellule J4. L’instruction suivante se trouve dans la cellule A8.","REVENUS",null,{"$f":"Totaux_frais_mensuels","v":{"v":0,"d":"0 €"}},{"$nulls":4},"REVENUS",null,null,{"$f":"Totaux_dépenses_annuelles","v":{"v":10742,"d":"10,742 €"}}]
[null,"DÉPENSES",null,{"$f":"Totaux_revenus_mensuels","v":{"v":0,"d":"0 €"}},{"$nulls":4},"DÉPENSES",null,null,{"$f":"Totaux_revenus_annuels","v":{"v":13200,"d":"13,200 €"}}]
[]
[]
["Le tableau du tableau de bord, qui commence dans la cellule de droite, est mis à jour automatiquement.","Catégorie","JANVIER","FÉVRIER","MARS","AVRIL","MAI","JUIN","JUILLET","AOÛT","SEPTEMBRE","OCTOBRE","NOVEMBRE","DÉCEMBRE","Graphique sparkline"]
[null,"Revenus du 1 au 15",{"$f":"SUMIFS(Revenu[MONTANT],Revenu[DATE],\"<=\"&Dt_milieu,Revenu[DATE],\">=\"&Démarrage)","v":{"v":0,"d":"0.00 €"}},{"$f":"SUMIFS(Revenu[MONTANT],Revenu[DATE],\"<=\"&Dt_milieu,Revenu[DATE],\">=\"&Démarrage)","v":{"v":0,"d":"0.00 €"}},{"$f":"SUMIFS(Revenu[MONTANT],Revenu[DATE],\"<=\"&Dt_milieu,Revenu[DATE],\">=\"&Démarrage)","v":{"v":1300,"d":"1,300.00 €"}},{"$f":"SUMIFS(Revenu[MONTANT],Revenu[DATE],\"<=\"&Dt_milieu,Revenu[DATE],\">=\"&Démarrage)","v":{"v":2600,"d":"2,600.00 €"}},{"$f":"SUMIFS(Revenu[MONTANT],Revenu[DATE],\"<=\"&Dt_milieu,Revenu[DATE],\">=\"&Démarrage)","v":{"v":2600,"d":"2,600.00 €"}},{"$f":"SUMIFS(Revenu[MONTANT],Revenu[DATE],\"<=\"&Dt_milieu,Revenu[DATE],\">=\"&Démarrage)","v":{"v":0,"d":"0.00 €"}},{"$f":"SUMIFS(Revenu[MONTANT],Revenu[DATE],\"<=\"&Dt_milieu,Revenu[DATE],\">=\"&Démarrage)","v":{"v":0,"d":"0.00 €"}},{"$f":"SUMIFS(Revenu[MONTANT],Revenu[DATE],\"<=\"&Dt_milieu,Revenu[DATE],\">=\"&Démarrage)","v":{"v":0,"d":"0.00 €"}},{"$f":"SUMIFS(Revenu[MONTANT],Revenu[DATE],\"<=\"&Dt_milieu,Revenu[DATE],\">=\"&Démarrage)","v":{"v":0,"d":"0.00 €"}},{"$f":"SUMIFS(Revenu[MONTANT],Revenu[DATE],\"<=\"&Dt_milieu,Revenu[DATE],\">=\"&Démarrage)","v":{"v":0,"d":"0.00 €"}},{"$f":"SUMIFS(Revenu[MONTANT],Revenu[DATE],\"<=\"&Dt_milieu,Revenu[DATE],\">=\"&Démarrage)","v":{"v":0,"d":"0.00 €"}},{"$f":"SUMIFS(Revenu[MONTANT],Revenu[DATE],\"<=\"&Dt_milieu,Revenu[DATE],\">=\"&Démarrage)","v":{"v":0,"d":"0.00 €"}}]
[null,"Revenu du 16 à la fin du mois",{"$f":"SUMIFS(Revenu[MONTANT],Revenu[DATE],\"<=\"&Dt_fin,Revenu[DATE],\">=\"&Dt_milieu+1)","v":{"v":0,"d":"0.00 €"}},{"$f":"SUMIFS(Revenu[MONTANT],Revenu[DATE],\"<=\"&Dt_fin,Revenu[DATE],\">=\"&Dt_milieu+1)","v":{"v":0,"d":"0.00 €"}},{"$f":"SUMIFS(Revenu[MONTANT],Revenu[DATE],\"<=\"&Dt_fin,Revenu[DATE],\">=\"&Dt_milieu+1)","v":{"v":3100,"d":"3,100.00 €"}},{"$f":"SUMIFS(Revenu[MONTANT],Revenu[DATE],\"<=\"&Dt_fin,Revenu[DATE],\">=\"&Dt_milieu+1)","v":{"v":3100,"d":"3,100.00 €"}},{"$f":"SUMIFS(Revenu[MONTANT],Revenu[DATE],\"<=\"&Dt_fin,Revenu[DATE],\">=\"&Dt_milieu+1)","v":{"v":500,"d":"500.00 €"}},{"$f":"SUMIFS(Revenu[MONTANT],Revenu[DATE],\"<=\"&Dt_fin,Revenu[DATE],\">=\"&Dt_milieu+1)","v":{"v":0,"d":"0.00 €"}},{"$f":"SUMIFS(Revenu[MONTANT],Revenu[DATE],\"<=\"&Dt_fin,Revenu[DATE],\">=\"&Dt_milieu+1)","v":{"v":0,"d":"0.00 €"}},{"$f":"SUMIFS(Revenu[MONTANT],Revenu[DATE],\"<=\"&Dt_fin,Revenu[DATE],\">=\"&Dt_milieu+1)","v":{"v":0,"d":"0.00 €"}},{"$f":"SUMIFS(Revenu[MONTANT],Revenu[DATE],\"<=\"&Dt_fin,Revenu[DATE],\">=\"&Dt_milieu+1)","v":{"v":0,"d":"0.00 €"}},{"$f":"SUMIFS(Revenu[MONTANT],Revenu[DATE],\"<=\"&Dt_fin,Revenu[DATE],\">=\"&Dt_milieu+1)","v":{"v":0,"d":"0.00 €"}},{"$f":"SUMIFS(Revenu[MONTANT],Revenu[DATE],\"<=\"&Dt_fin,Revenu[DATE],\">=\"&Dt_milieu+1)","v":{"v":0,"d":"0.00 €"}},{"$f":"SUMIFS(Revenu[MONTANT],Revenu[DATE],\"<=\"&Dt_fin,Revenu[DATE],\">=\"&Dt_milieu+1)","v":{"v":0,"d":"0.00 €"}}]
[null,"Dépenses du 1 au 15",{"$f":"SUMIFS(Dépenses[MONTANT],Dépenses[DATE],\"<=\"&Dt_milieu+1,Dépenses[DATE],\">=\"&Démarrage)","v":{"v":0,"d":"0.00 €"}},{"$f":"SUMIFS(Dépenses[MONTANT],Dépenses[DATE],\"<=\"&Dt_milieu+1,Dépenses[DATE],\">=\"&Démarrage)","v":{"v":0,"d":"0.00 €"}},{"$f":"SUMIFS(Dépenses[MONTANT],Dépenses[DATE],\"<=\"&Dt_milieu+1,Dépenses[DATE],\">=\"&Démarrage)","v":{"v":1150,"d":"1,150.00 €"}},{"$f":"SUMIFS(Dépenses[MONTANT],Dépenses[DATE],\"<=\"&Dt_milieu+1,Dépenses[DATE],\">=\"&Démarrage)","v":{"v":5175,"d":"5,175.00 €"}},{"$f":"SUMIFS(Dépenses[MONTANT],Dépenses[DATE],\"<=\"&Dt_milieu+1,Dépenses[DATE],\">=\"&Démarrage)","v":{"v":2792,"d":"2,792.00 €"}},{"$f":"SUMIFS(Dépenses[MONTANT],Dépenses[DATE],\"<=\"&Dt_milieu+1,Dépenses[DATE],\">=\"&Démarrage)","v":{"v":0,"d":"0.00 €"}},{"$f":"SUMIFS(Dépenses[MONTANT],Dépenses[DATE],\"<=\"&Dt_milieu+1,Dépenses[DATE],\">=\"&Démarrage)","v":{"v":0,"d":"0.00 €"}},{"$f":"SUMIFS(Dépenses[MONTANT],Dépenses[DATE],\"<=\"&Dt_milieu+1,Dépenses[DATE],\">=\"&Démarrage)","v":{"v":0,"d":"0.00 €"}},{"$f":"SUMIFS(Dépenses[MONTANT],Dépenses[DATE],\"<=\"&Dt_milieu+1,Dépenses[DATE],\">=\"&Démarrage)","v":{"v":0,"d":"0.00 €"}},{"$f":"SUMIFS(Dépenses[MONTANT],Dépenses[DATE],\"<=\"&Dt_milieu+1,Dépenses[DATE],\">=\"&Démarrage)","v":{"v":0,"d":"0.00 €"}},{"$f":"SUMIFS(Dépenses[MONTANT],Dépenses[DATE],\"<=\"&Dt_milieu+1,Dépenses[DATE],\">=\"&Démarrage)","v":{"v":0,"d":"0.00 €"}},{"$f":"SUMIFS(Dépenses[MONTANT],Dépenses[DATE],\"<=\"&Dt_milieu+1,Dépenses[DATE],\">=\"&Démarrage)","v":{"v":0,"d":"0.00 €"}}]
[null,"Dépenses du 16 à la fin du mois",{"$f":"SUMIFS(Dépenses[MONTANT],Dépenses[DATE],\"<=\"&Dt_fin,Dépenses[DATE],\">=\"&Dt_milieu+1)","v":{"v":0,"d":"0.00 €"}},{"$f":"SUMIFS(Dépenses[MONTANT],Dépenses[DATE],\"<=\"&Dt_fin,Dépenses[DATE],\">=\"&Dt_milieu+1)","v":{"v":75,"d":"75.00 €"}},{"$f":"SUMIFS(Dépenses[MONTANT],Dépenses[DATE],\"<=\"&Dt_fin,Dépenses[DATE],\">=\"&Dt_milieu+1)","v":{"v":200,"d":"200.00 €"}},{"$f":"SUMIFS(Dépenses[MONTANT],Dépenses[DATE],\"<=\"&Dt_fin,Dépenses[DATE],\">=\"&Dt_milieu+1)","v":{"v":875,"d":"875.00 €"}},{"$f":"SUMIFS(Dépenses[MONTANT],Dépenses[DATE],\"<=\"&Dt_fin,Dépenses[DATE],\">=\"&Dt_milieu+1)","v":{"v":500,"d":"500.00 €"}},{"$f":"SUMIFS(Dépenses[MONTANT],Dépenses[DATE],\"<=\"&Dt_fin,Dépenses[DATE],\">=\"&Dt_milieu+1)","v":{"v":0,"d":"0.00 €"}},{"$f":"SUMIFS(Dépenses[MONTANT],Dépenses[DATE],\"<=\"&Dt_fin,Dépenses[DATE],\">=\"&Dt_milieu+1)","v":{"v":0,"d":"0.00 €"}},{"$f":"SUMIFS(Dépenses[MONTANT],Dépenses[DATE],\"<=\"&Dt_fin,Dépenses[DATE],\">=\"&Dt_milieu+1)","v":{"v":0,"d":"0.00 €"}},{"$f":"SUMIFS(Dépenses[MONTANT],Dépenses[DATE],\"<=\"&Dt_fin,Dépenses[DATE],\">=\"&Dt_milieu+1)","v":{"v":0,"d":"0.00 €"}},{"$f":"SUMIFS(Dépenses[MONTANT],Dépenses[DATE],\"<=\"&Dt_fin,Dépenses[DATE],\">=\"&Dt_milieu+1)","v":{"v":0,"d":"0.00 €"}},{"$f":"SUMIFS(Dépenses[MONTANT],Dépenses[DATE],\"<=\"&Dt_fin,Dépenses[DATE],\">=\"&Dt_milieu+1)","v":{"v":0,"d":"0.00 €"}},{"$f":"SUMIFS(Dépenses[MONTANT],Dépenses[DATE],\"<=\"&Dt_fin,Dépenses[DATE],\">=\"&Dt_milieu+1)","v":{"v":0,"d":"0.00 €"}}]

{"sheet":"Dépenses et revenus","index":2,"n_rows":36,"n_cols":9,"rows_kept":36,"merged":[[0,1,0,6],[0,7,0,8]]}
["Créez une liste des Revenus et dépenses dans cette feuille de calcul. Des instructions utiles sur l’utilisation de cette feuille de calcul sont disponibles dans les cellules de cette colonne. Le titre de ce classeur se trouve dans la cellule de droite et le titre de la feuille de calcul dans la cellule H1.",{"$f":"Semi_Monthly_Home_Budget_Title","v":"Budget familial bimensuel"},{"$nulls":5},"REVENUS ET DÉPENSES"]
["L’intitulé Revenus se trouve dans la cellule de droite et l’intitulé Dépenses dans la cellule F2.","REVENUS",{"$nulls":3},"DÉPENSES"]
["Entrez les détails dans le tableau Revenus, en commençant dans la cellule de droite et dans le tableau Dépenses à partir de la cellule F3.","DATE","DESCRIPTION","MONTANT",null,"DATE","CATÉGORIE","DESCRIPTION","MONTANT"]
[null,{"$f":"TODAY()","v":"2022-05-17"},"Bonus",{"v":500,"d":"500.00 €"},null,{"$f":"TODAY()","v":"2022-05-17"},"Médical","Assurance",{"v":500,"d":"500.00 €"}]
[null,{"$f":"TODAY()-14","v":"2022-05-03"},"Salaire de David",{"v":1300,"d":"1,300.00 €"},null,{"$f":"TODAY()-7","v":"2022-05-10"},"Logement","Prêt immobilier",{"v":1000,"d":"1,000.00 €"}]
[null,{"$f":"TODAY()-14","v":"2022-05-03"},"Salaire de Pat",{"v":1300,"d":"1,300.00 €"},null,"2022-05-10","Logement","Électricité",{"v":100,"d":"100.00 €"}]
[null,{"$f":"TODAY()-28","v":"2022-04-19"},"Salaire de David",{"v":1500,"d":"1,500.00 €"},null,"2022-05-10","Logement","Eau/assainissement",{"v":50,"d":"50.00 €"}]
[null,{"$f":"TODAY()-28","v":"2022-04-19"},"Salaire de Pat",{"v":1600,"d":"1,600.00 €"},null,"2022-05-10","Logement","Ordures ménagères",{"v":25,"d":"25.00 €"}]
[null,{"$f":"TODAY()-42","v":"2022-04-05"},"Salaire de David",{"v":1300,"d":"1,300.00 €"},null,"2022-05-10","Logement","Téléphone portable",{"v":100,"d":"100.00 €"}]
[null,{"$f":"TODAY()-42","v":"2022-04-05"},"Salaire de Pat",{"v":1300,"d":"1,300.00 €"},null,"2022-05-10","Logement","Téléphone portable",{"v":30,"d":"30.00 €"}]
[null,{"$f":"TODAY()-56","v":"2022-03-22"},"Salaire de David",{"v":1500,"d":"1,500.00 €"},null,"2022-05-10","Logement","Prêt immobilier",{"v":50,"d":"50.00 €"}]
[null,{"$f":"TODAY()-56","v":"2022-03-22"},"Salaire de Pat",{"v":1600,"d":"1,600.00 €"},null,"2022-05-10","Logement","Téléphone portable",{"v":50,"d":"50.00 €"}]
[null,{"$f":"TODAY()-70","v":"2022-03-08"},"Salaire de David",{"v":1300,"d":"1,300.00 €"},null,{"$f":"TODAY()-7","v":"2022-05-10"},"Logement","Téléphone portable",{"v":25,"d":"25.00 €"}]
[{"$nulls":5},{"$f":"TODAY()-8","v":"2022-05-09"},"Logement","Électricité",{"v":100,"d":"100.00 €"}]
[{"$nulls":5},{"$f":"TODAY()-9","v":"2022-05-08"},"Loisirs","Cinéma",{"v":37,"d":"37.00 €"}]
[{"$nulls":5},{"$f":"TODAY()-10","v":"2022-05-07"},"Nourriture","Courses",{"v":350,"d":"350.00 €"}]
[{"$nulls":5},{"$f":"TODAY()-11","v":"2022-05-06"},"Nourriture","Restaurant",{"v":75,"d":"75.00 €"}]
[{"$nulls":5},{"$f":"TODAY()-12","v":"2022-05-05"},"Enfants","Cantine",{"v":150,"d":"150.00 €"}]
[{"$nulls":5},{"$f":"TODAY()-13","v":"2022-05-04"},"Comptes-titres","Épargne",{"v":250,"d":"250.00 €"}]
[{"$nulls":5},{"$f":"TODAY()-14","v":"2022-05-03"},"Comptes-titres","Compte-titres",{"v":250,"d":"250.00 €"}]
[{"$nulls":5},{"$f":"TODAY()-15","v":"2022-05-02"},"Personnel","Club de remise en forme/de sport",{"v":100,"d":"100.00 €"}]
[{"$nulls":5},{"$f":"TODAY()-16","v":"2022-05-01"},"Animaux","Nourriture",{"v":50,"d":"50.00 €"}]
[{"$nulls":5},{"$f":"TODAY()-20","v":"2022-04-27"},"Animaux","Toilettage",{"v":50,"d":"50.00 €"}]
[{"$nulls":5},{"$f":"TODAY()-20","v":"2022-04-27"},"Animaux","Autres",{"v":50,"d":"50.00 €"}]
[{"$nulls":5},{"$f":"TODAY()-25","v":"2022-04-22"},"Transport","Paiement voiture 1 ",{"v":300,"d":"300.00 €"}]
[{"$nulls":5},{"$f":"TODAY()-25","v":"2022-04-22"},"Transport","Paiement voiture 2 ",{"v":350,"d":"350.00 €"}]
[{"$nulls":5},{"$f":"TODAY()-25","v":"2022-04-22"},"Transport","Assurance voiture",{"v":50,"d":"50.00 €"}]
[{"$nulls":5},{"$f":"TODAY()-30","v":"2022-04-17"},"Transport","Carburant",{"v":50,"d":"50.00 €"}]
[{"$nulls":5},{"$f":"TODAY()-31","v":"2022-04-16"},"Transport","Carburant",{"v":25,"d":"25.00 €"}]
[{"$nulls":5},{"$f":"TODAY()-42","v":"2022-04-05"},"Transport","Paiement voiture 2 ",{"v":150,"d":"150.00 €"}]
[{"$nulls":5},{"$f":"TODAY()-45","v":"2022-04-02"},"Logement","Prêt immobilier",{"v":5000,"d":"5,000.00 €"}]
[{"$nulls":5},{"$f":"TODAY()-50","v":"2022-03-28"},"Logement","Électricité",{"v":200,"d":"200.00 €"}]
[{"$nulls":5},{"$f":"TODAY()-65","v":"2022-03-13"},"Logement","Téléphone portable",{"v":100,"d":"100.00 €"}]
[{"$nulls":5},{"$f":"TODAY()-70","v":"2022-03-08"},"Logement","Ordures ménagères",{"v":50,"d":"50.00 €"}]
[{"$nulls":5},{"$f":"TODAY()-75","v":"2022-03-03"},"Logement","Prêt immobilier",{"v":1000,"d":"1,000.00 €"}]
[{"$nulls":5},{"$f":"TODAY()-78","v":"2022-02-28"},"Loisirs","Cinéma",{"v":75,"d":"75.00 €"}]

{"sheet":"Rapport budgétaire","index":3,"n_rows":26,"n_cols":6,"rows_kept":26,"merged":[[4,3,4,5]]}
["Créez un rapport budgétaire dans cette feuille de calcul. Des instructions utiles sur l’utilisation de cette feuille de calcul sont disponibles dans les cellules de cette colonne. Le titre de ce classeur se trouve dans la cellule de droite et le titre de la feuille de calcul dans la cellule F1.",{"$f":"Semi_Monthly_Home_Budget_Title","v":"Budget familial bimensuel"},{"$nulls":3},"RAPPORT BUDGÉTAIRE"]
["Sélectionnez Années, Trimestres, Mois ou Jours, et utilisez le curseur dans la cellule de droite pour obtenir le tableau croisé dynamique des Dépenses pour la période sélectionnée. Le segment de catégorie pour filtrer les données d’un tableau croisé dynamique se trouve dans la cellule E2 et le segment Description dans la cellule F2.","La chronologie à filtrer se trouve dans cette cellule.",null,null,"Le segment qui permet de filtrer les données d’un tableau croisé dynamique en se basant sur la catégorie se trouve dans cette cellule.","Le segment qui permet de filtrer les données d’un tableau croisé dynamique en se basant sur la description se trouve dans cette cellule."]
["Un conseil figure dans la cellule de droite.","Appuyez sur Maj+F10 dans le tableau croisé dynamique des Dépenses, puis sélectionnez Actualiser pour mettre à jour les données de cette feuille, ou sélectionnez Actualiser sous l’onglet Analyse."]
["L’intitulé Dépenses se trouve dans la cellule de droite.","DÉPENSES"]
["Le tableau croisé dynamique affichant les dépenses commence dans la cellule à droite. L’intitulé Totaux de la catégorie se trouve dans la cellule D4.","Étiquettes de lignes","Somme de MONTANT","TOTAUX DES CATÉGORIES"]
["Le graphique en secteurs comparant le total de chaque catégorie se trouve dans la cellule D6.","Paiement voiture 1 ",{"v":300,"d":"300.00 €"}]
[null,"Paiement voiture 2 ",{"v":500,"d":"500.00 €"}]
[null,"Assurance",{"v":500,"d":"500.00 €"}]
[null,"Assurance voiture",{"v":50,"d":"50.00 €"}]
[null,"Autres",{"v":50,"d":"50.00 €"}]
[null,"Cantine",{"v":150,"d":"150.00 €"}]
[null,"Carburant",{"v":75,"d":"75.00 €"}]
[null,"Cinéma",{"v":112,"d":"112.00 €"}]
[null,"Club de remise en forme/de sport",{"v":100,"d":"100.00 €"}]
[null,"Compte-titres",{"v":250,"d":"250.00 €"}]
[null,"Courses",{"v":350,"d":"350.00 €"}]
[null,"Eau/assainissement",{"v":50,"d":"50.00 €"}]
[null,"Électricité",{"v":400,"d":"400.00 €"}]
[null,"Épargne",{"v":250,"d":"250.00 €"}]
[null,"Nourriture",{"v":50,"d":"50.00 €"}]
[null,"Ordures ménagères",{"v":75,"d":"75.00 €"}]
[null,"Prêt immobilier",{"v":7050,"d":"7,050.00 €"}]
[null,"Restaurant",{"v":75,"d":"75.00 €"}]
[null,"Téléphone portable",{"v":305,"d":"305.00 €"}]
[null,"Toilettage",{"v":50,"d":"50.00 €"}]
[null,"Total général",{"v":10742,"d":"10,742.00 €"}]

{"sheet":"Listes de données","index":4,"n_rows":8,"n_cols":13,"rows_kept":8,"merged":[[0,1,0,11]]}
["Entrez les données de catégorie dans cette feuille de calcul pour remplir les listes déroulantes dans le tableau des Dépenses de la feuille de calcul Dépenses et revenus. Modifiez les noms de catégorie ou les descriptions sous chaque catégorie pour mettre à jour les listes. Des instructions utiles sur l’utilisation de cette feuille de calcul sont disponibles dans les cellules de cette colonne. Le titre de ce classeur se trouve dans la cellule de droite et le titre de la feuille de calcul dans la cellule M1.",{"$f":"Semi_Monthly_Home_Budget_Title","v":"Budget familial bimensuel"},{"$nulls":10},"LISTES DE DONNÉES"]
["Un conseil figure dans la cellule de droite.","CONFIGURATION         Les données de catégorie ci-dessous remplissent les listes déroulantes du tableau Dépenses de la feuille Dépenses et revenus. Modifiez les noms de catégorie ou les descriptions sous chaque catégorie pour mettre à jour les listes."]
["Entrez ou modifiez les noms de catégorie ou les descriptions sous chaque catégorie du tableau en commençant par la cellule de droite.","Logement","Loisirs","Nourriture","Cadeaux/dons","Enfants","Comptes-titres","Médical","Autres","Personnel","Animaux","Taxes/frais juridiques","Transport"]
[null,"Prêt immobilier","Cinéma","Courses","Association caritative 1","Vêtements","IRA","Médecin/clinique","Autres","Vêtements","Nourriture","Fédéraux","Paiement voiture 1 "]
[null,"Électricité","Vidéos/cinéma","Restaurant","Association caritative 2","Jouets/jeux","Épargne","Assurance","Cotisations de l’organisation","Coiffure/manucure","Fournitures","Régionaux","Paiement voiture 2 "]
[null,"Eau/assainissement","Musique",null,"Association caritative 3","Cantine","Compte courant",null,null,"Pressing","Médical","Locaux","Assurance voiture"]
[null,"Ordures ménagères","Concerts/théâtre",null,"Cadeau","Cotisations/frais ","Retraite",null,null,"Club de remise en forme/de sport","Toilettage","Autres","Permis/immatriculation"]
[null,"Téléphone portable","Événements sportifs",null,null,"Fournitures scolaires","Compte-titres",null,null,"Shopping","Autres","Avocat","Carburant"]

{"sheet":"Tableau croisé dyn. Catégorie","index":5,"n_rows":13,"n_cols":13,"rows_kept":13,"hidden":true}
[null,"Budget familial bimensuel",{"$nulls":10},"TABLEAU CROISÉ DYNAMIQUE DES CATÉGORIES"]
[null,"Ce tableau croisé dynamique est la source de données pour le tableau croisé dynamique des totaux de catégorie dans le rapport budgétaire. "]
[null,"Étiquettes de lignes","Somme de MONTANT"]
[null,"Animaux",{"v":150,"d":"150 €"}]
[null,"Comptes-titres",{"v":500,"d":"500 €"}]
[null,"Enfants",{"v":150,"d":"150 €"}]
[null,"Logement",{"v":7880,"d":"7,880 €"}]
[null,"Loisirs",{"v":112,"d":"112 €"}]
[null,"Médical",{"v":500,"d":"500 €"}]
[null,"Personnel",{"v":100,"d":"100 €"}]
[null,"Transport",{"v":925,"d":"925 €"}]
[null,"Nourriture",{"v":425,"d":"425 €"}]
[null,"Total général",{"v":10742,"d":"10,742 €"}]